[Event "*** MasterClass Titled Tuesday Blitz"]
[Site "Chess.com"]
[Date "2017.09.05"]
[Round "6"]
[White "aa175"]
[Black "blitzcopter"]
[Result "1-0"]
[WhiteElo "1859"]
[BlackElo "2024"]
[TimeControl "180+2"]
[EndTime "14:28:23 PDT"]
[Termination "aa175 won by resignation"]

1. e4 {[%clk 0:03:00.8]} 1... c6 {[%clk 0:03:00.5]} 2. Nf3 {[%clk 0:02:57.8]}
2... d5 {[%clk 0:03:02.4]} 3. exd5 {[%clk 0:02:59.6]} 3... cxd5 {[%clk
0:03:04.3]} 4. d3 {[%clk 0:02:55.1]} 4... Nc6 {[%clk 0:03:05.2]} 5. Be2 {[%clk
0:02:56.8]} 5... Bg4 {[%clk 0:03:04.4]} 6. h3 {[%clk 0:02:57.4]} 6... Bh5 {[%clk
0:03:04]} 7. c3 {[%clk 0:02:59.3]} 7... e6 {[%clk 0:03:04.2]} 8. Be3 {[%clk
0:03:00.6]} 8... Bd6 {[%clk 0:03:05.2]} 9. Nbd2 {[%clk 0:03:01.3]} 9... Nge7
{[%clk 0:03:05.3]} 10. O-O {[%clk 0:03:02.5]} 10... Qc7 {[%clk 0:03:05.5]} 11.
Nb3 {[%clk 0:03:03.6]} 11... O-O {[%clk 0:02:58.3]} 12. Nfd4 {[%clk 0:03:04.6]}
12... Bxe2 {[%clk 0:02:57.1]} 13. Qxe2 {[%clk 0:03:03.9]} 13... a6 {[%clk
0:02:57.6]} 14. Nxc6 {[%clk 0:03:04]} 14... Nxc6 {[%clk 0:02:57.7]} 15. Nd4
{[%clk 0:03:05.9]} 15... Nxd4 {[%clk 0:02:58.6]} 16. Bxd4 {[%clk 0:03:07.8]}
16... e5 {[%clk 0:02:57.1]} 17. Be3 {[%clk 0:03:06.9]} 17... Rfe8 {[%clk
0:02:52.1]} 18. Rad1 {[%clk 0:03:03.4]} 18... d4 {[%clk 0:02:51.1]} 19. Bd2
{[%clk 0:02:57]} 19... dxc3 {[%clk 0:02:51.6]} 20. Bxc3 {[%clk 0:02:57.8]} 20...
Rad8 {[%clk 0:02:51.3]} 21. Rfe1 {[%clk 0:02:52.1]} 21... f6 {[%clk 0:02:45.5]}
22. Qe4 {[%clk 0:02:51.4]} 22... Qf7 {[%clk 0:02:33.1]} 23. a3 {[%clk
0:02:46.9]} 23... Bc5 {[%clk 0:02:29.7]} 24. Kf1 {[%clk 0:02:30.4]} 24... Bd4
{[%clk 0:02:27.6]} 25. Rb1 {[%clk 0:02:20.4]} 25... Qb3 {[%clk 0:02:15.7]} 26.
Rec1 {[%clk 0:02:11.4]} 26... b5 {[%clk 0:02:12.2]} 27. g4 {[%clk 0:02:05.8]}
27... Qe6 {[%clk 0:02:01.3]} 28. Kg2 {[%clk 0:01:41.1]} 28... Rd7 {[%clk
0:01:52.2]} 29. Re1 {[%clk 0:01:39.7]} 29... Qb6 {[%clk 0:01:47.4]} 30. f3
{[%clk 0:01:27.8]} 30... Red8 {[%clk 0:01:42.7]} 31. Red1 {[%clk 0:01:18.3]}
31... Rd6 {[%clk 0:01:29.6]} 32. Rdc1 {[%clk 0:01:06.3]} 32... R8d7 {[%clk
0:01:27.7]} 33. Rc2 {[%clk 0:01:03.7]} 33... g6 {[%clk 0:01:19.5]} 34. Rbc1
{[%clk 0:01:01.9]} 34... Kg7 {[%clk 0:01:11.9]} 35. h4 {[%clk 0:00:59.8]} 35...
Qd8 {[%clk 0:01:09.5]} 36. Bb4 {[%clk 0:00:57.9]} 36... Rd5 {[%clk 0:01:01.9]}
37. Rc8 {[%clk 0:00:56]} 37... Qb6 {[%clk 0:01:02.8]} 38. R1c6 {[%clk
0:00:51.8]} 38... Qb7 {[%clk 0:01:00.4]} 39. Bf8+ {[%clk 0:00:39.4]} 39... Kf7
{[%clk 0:01:00.2]} 40. Bd6 {[%clk 0:00:18.1]} 40... R5xd6 {[%clk 0:00:34.1]} 41.
Rxd6 {[%clk 0:00:17.5]} 41... Qxe4 {[%clk 0:00:35.5]} 42. Rxd7+ {[%clk
0:00:18.1]} 42... Ke6 {[%clk 0:00:36.7]} 43. dxe4 {[%clk 0:00:18.6]} 43... Kxd7
{[%clk 0:00:37.8]} 44. Rh8 {[%clk 0:00:19.5]} 44... Bxb2 {[%clk 0:00:36.9]} 45.
Rxh7+ {[%clk 0:00:19.7]} 45... Ke6 {[%clk 0:00:33.6]} 46. Ra7 {[%clk 0:00:19.5]}
46... Bxa3 {[%clk 0:00:33.7]} 47. Rxa6+ {[%clk 0:00:20.7]} 47... Bd6 {[%clk
0:00:35.6]} 48. h5 {[%clk 0:00:20.3]} 48... b4 {[%clk 0:00:36.6]} 1-0

[Event "*** MasterClass Titled Tuesday Blitz"]
[Site "Chess.com"]
[Date "2017.09.05"]
[Round "6"]
[White "Tarlev_Konstantin"]
[Black "popov_m"]
[Result "0-1"]
[WhiteElo "2583"]
[BlackElo "2450"]
[TimeControl "180+2"]
[EndTime "14:28:32 PDT"]
[Termination "popov_m won by resignation"]

1. d4 {[%clk 0:02:28.9]} 1... Nf6 {[%clk 0:02:50.8]} 2. Nf3 {[%clk 0:02:29.9]}
2... g6 {[%clk 0:02:52]} 3. g3 {[%clk 0:02:31.4]} 3... Bg7 {[%clk 0:02:53.5]} 4.
Bg2 {[%clk 0:02:33.1]} 4... O-O {[%clk 0:02:55.2]} 5. O-O {[%clk 0:02:34.6]}
5... d6 {[%clk 0:02:56.8]} 6. c4 {[%clk 0:02:35.2]} 6... c5 {[%clk 0:02:58.3]}
7. Nc3 {[%clk 0:02:35.9]} 7... Nc6 {[%clk 0:02:59]} 8. d5 {[%clk 0:02:31.4]}
8... Na5 {[%clk 0:02:58.4]} 9. Nd2 {[%clk 0:02:32.1]} 9... a6 {[%clk 0:02:56.4]}
10. Qc2 {[%clk 0:02:32.6]} 10... Rb8 {[%clk 0:02:54.4]} 11. b3 {[%clk
0:02:26.1]} 11... b5 {[%clk 0:02:55.6]} 12. Bb2 {[%clk 0:02:27.3]} 12... e5
{[%clk 0:02:44.7]} 13. Rab1 {[%clk 0:02:20.7]} 13... Nh5 {[%clk 0:02:37]} 14. e4
{[%clk 0:02:06.4]} 14... f5 {[%clk 0:02:31.2]} 15. exf5 {[%clk 0:02:07.6]} 15...
gxf5 {[%clk 0:02:33.1]} 16. Ne2 {[%clk 0:02:05.5]} 16... f4 {[%clk 0:02:25.2]}
17. f3 {[%clk 0:01:45.5]} 17... fxg3 {[%clk 0:02:06.3]} 18. hxg3 {[%clk
0:01:45.9]} 18... Bh6 {[%clk 0:01:34]} 19. f4 {[%clk 0:01:28.1]} 19... exf4
{[%clk 0:01:09]} 20. Nxf4 {[%clk 0:01:28.6]} 20... Nxf4 {[%clk 0:01:10.1]} 21.
gxf4 {[%clk 0:01:27.9]} 21... Bf5 {[%clk 0:00:33.3]} 22. Qc3 {[%clk 0:01:21.1]}
22... bxc4 {[%clk 0:00:21.5]} 23. Ne4 {[%clk 0:01:12.3]} 23... Rb7 {[%clk
0:00:08.8]} 24. Qh8+ {[%clk 0:00:19.8]} 24... Kf7 {[%clk 0:00:09.8]} 25. Ng5+
{[%clk 0:00:21.8]} 25... Bxg5 {[%clk 0:00:09.4]} 26. Qg7+ {[%clk 0:00:22.7]}
26... Ke8 {[%clk 0:00:09.6]} 27. Rbe1+ {[%clk 0:00:16.7]} 27... Be7 {[%clk
0:00:10.4]} 28. Bf3 {[%clk 0:00:17.1]} 28... Kd7 {[%clk 0:00:09.8]} 29. Kh2
{[%clk 0:00:13.7]} 29... Kc8 {[%clk 0:00:10.8]} 30. Qg1 {[%clk 0:00:13.4]} 30...
cxb3 {[%clk 0:00:07.9]} 31. Bc3 {[%clk 0:00:13.6]} 31... Bf6 {[%clk 0:00:06.2]}
32. Bd2 {[%clk 0:00:11.1]} 32... Bd4 {[%clk 0:00:07.1]} 33. Qg5 {[%clk
0:00:11.3]} 33... Qxg5 {[%clk 0:00:07.5]} 34. fxg5 {[%clk 0:00:12.9]} 34... b2
{[%clk 0:00:08.1]} 35. Be4 {[%clk 0:00:13]} 35... Nc4 {[%clk 0:00:06.5]} 36.
Rxf5 {[%clk 0:00:10.9]} 36... Re8 {[%clk 0:00:05.4]} 37. Rff1 {[%clk 0:00:08]}
37... Rxe4 {[%clk 0:00:04.7]} 38. Rxe4 {[%clk 0:00:08.9]} 38... Nxd2 {[%clk
0:00:06.4]} 39. Re8+ {[%clk 0:00:09]} 39... Kc7 {[%clk 0:00:07.7]} 40. Rf7+
{[%clk 0:00:09.5]} 40... Kb6 {[%clk 0:00:09.2]} 0-1

[Event "*** MasterClass Titled Tuesday Blitz"]
[Site "Chess.com"]
[Date "2017.09.05"]
[Round "6"]
[White "HanSchut"]
[Black "champ2005"]
[Result "1-0"]
[WhiteElo "2335"]
[BlackElo "2480"]
[TimeControl "180+2"]
[EndTime "14:28:41 PDT"]
[Termination "HanSchut won by resignation"]

1. e4 {[%clk 0:03:01.9]} 1... c6 {[%clk 0:03:00.9]} 2. d4 {[%clk 0:03:02.7]}
2... d5 {[%clk 0:03:02.3]} 3. Nc3 {[%clk 0:03:04.3]} 3... dxe4 {[%clk
0:03:03.5]} 4. Nxe4 {[%clk 0:03:06.2]} 4... Bf5 {[%clk 0:03:04.8]} 5. Ng3 {[%clk
0:03:07]} 5... Bg6 {[%clk 0:03:06]} 6. h4 {[%clk 0:03:08.6]} 6... h6 {[%clk
0:03:06.6]} 7. Nf3 {[%clk 0:03:10]} 7... Nd7 {[%clk 0:03:07]} 8. h5 {[%clk
0:03:11.5]} 8... Bh7 {[%clk 0:03:08.3]} 9. Bd3 {[%clk 0:03:13]} 9... Bxd3 {[%clk
0:03:09.3]} 10. Qxd3 {[%clk 0:03:14.5]} 10... e6 {[%clk 0:03:10.9]} 11. Bd2
{[%clk 0:03:15.6]} 11... Ngf6 {[%clk 0:03:12]} 12. O-O-O {[%clk 0:03:16]} 12...
Be7 {[%clk 0:03:13.4]} 13. Kb1 {[%clk 0:03:17]} 13... O-O {[%clk 0:03:14.1]} 14.
Ne4 {[%clk 0:03:17.3]} 14... Nxe4 {[%clk 0:03:15.3]} 15. Qxe4 {[%clk 0:03:18.3]}
15... Nf6 {[%clk 0:03:16.6]} 16. Qe2 {[%clk 0:03:19.1]} 16... Qd5 {[%clk
0:03:17.5]} 17. Ne5 {[%clk 0:03:19.2]} 17... Qe4 {[%clk 0:03:17.5]} 18. Be3
{[%clk 0:03:20.1]} 18... Nd5 {[%clk 0:03:17.6]} 19. Rd3 {[%clk 0:02:21.7]} 19...
Nxe3 {[%clk 0:02:53.4]} 20. Rxe3 {[%clk 0:02:12.2]} 20... Qxd4 {[%clk 0:02:36]}
21. Rd1 {[%clk 0:02:12.2]} 21... Qa4 {[%clk 0:02:17.5]} 22. Rd7 {[%clk
0:01:53.8]} 22... Bg5 {[%clk 0:01:57.2]} 23. Re4 {[%clk 0:01:54.8]} 23... Qb5
{[%clk 0:01:48.5]} 24. c4 {[%clk 0:01:45.5]} 24... Qb6 {[%clk 0:01:32.2]} 25. f4
{[%clk 0:01:44.7]} 25... Bf6 {[%clk 0:01:06.3]} 26. Ng4 {[%clk 0:01:39.2]} 26...
Bh4 {[%clk 0:00:57]} 27. Nxh6+ {[%clk 0:01:29]} 27... gxh6 {[%clk 0:00:57.4]}
28. Qg4+ {[%clk 0:01:29.1]} 28... Kh8 {[%clk 0:00:54.4]} 29. Qxh4 {[%clk
0:01:29.4]} 29... Qg1+ {[%clk 0:00:55.2]} 30. Re1 {[%clk 0:01:28]} 30... Qxg2
{[%clk 0:00:55.3]} 31. Qf6+ {[%clk 0:01:24.8]} 31... Qg7 {[%clk 0:00:56]} 32.
Rxe6 {[%clk 0:01:17.7]} 32... Qxf6 {[%clk 0:00:32]} 33. Rxf6 {[%clk 0:01:18.5]}
33... b6 {[%clk 0:00:30.4]} 34. Rxh6+ {[%clk 0:01:17]} 34... Kg7 {[%clk
0:00:30.7]} 35. Rg6+ {[%clk 0:01:17.9]} 35... Kh7 {[%clk 0:00:31.2]} 36. Rxc6
{[%clk 0:01:18.5]} 36... Kg7 {[%clk 0:00:30.4]} 37. h6+ {[%clk 0:01:18.5]} 37...
Kh7 {[%clk 0:00:30.6]} 38. Rf6 {[%clk 0:01:19.1]} 38... Rae8 {[%clk 0:00:27.8]}
39. Rdxf7+ {[%clk 0:01:16.3]} 39... Rxf7 {[%clk 0:00:28.4]} 40. Rxf7+ {[%clk
0:01:18.2]} 40... Kxh6 {[%clk 0:00:29.9]} 41. Rc7 {[%clk 0:01:18.9]} 41... Re4
{[%clk 0:00:28.9]} 42. b3 {[%clk 0:01:17.3]} 42... Rxf4 {[%clk 0:00:29.7]} 43.
Rxa7 {[%clk 0:01:17.9]} 43... Rf6 {[%clk 0:00:30.8]} 44. Ra6 {[%clk 0:01:18.8]}
44... Kg5 {[%clk 0:00:31.6]} 45. Kb2 {[%clk 0:01:20]} 45... Kf5 {[%clk
0:00:30.1]} 46. Kc3 {[%clk 0:01:21]} 46... Ke5 {[%clk 0:00:31.3]} 47. Kb4 {[%clk
0:01:22]} 47... Kd4 {[%clk 0:00:31.3]} 48. a4 {[%clk 0:01:19.2]} 48... Kd3
{[%clk 0:00:31.9]} 49. Ra8 {[%clk 0:01:15.7]} 49... Kc2 {[%clk 0:00:32.4]} 50.
Rh8 {[%clk 0:01:10.7]} 50... Rf3 {[%clk 0:00:31]} 51. Rh2+ {[%clk 0:01:09.3]}
51... Kd3 {[%clk 0:00:32.1]} 52. Rg2 {[%clk 0:01:07.1]} 52... Rh3 {[%clk
0:00:32.2]} 53. Kb5 {[%clk 0:01:07.2]} 53... Kd4 {[%clk 0:00:33.3]} 54. Rg4+
{[%clk 0:00:57.2]} 54... Ke5 {[%clk 0:00:25.1]} 55. b4 {[%clk 0:00:57]} 55...
Kd6 {[%clk 0:00:22.7]} 1-0

[Event "*** MasterClass Titled Tuesday Blitz"]
[Site "Chess.com"]
[Date "2017.09.05"]
[Round "6"]
[White "XDPS"]
[Black "ViIIagra"]
[Result "1-0"]
[WhiteElo "2584"]
[BlackElo "2667"]
[TimeControl "180+2"]
[EndTime "14:28:48 PDT"]
[Termination "XDPS won by resignation"]

1. d4 {[%clk 0:03:01.9]} 1... Nf6 {[%clk 0:03:00.8]} 2. Bf4 {[%clk 0:03:02.7]}
2... g6 {[%clk 0:03:02.7]} 3. Nc3 {[%clk 0:03:03]} 3... Bg7 {[%clk 0:03:04.3]}
4. e4 {[%clk 0:03:03.8]} 4... d6 {[%clk 0:03:05.7]} 5. Qd2 {[%clk 0:03:04.6]}
5... c6 {[%clk 0:02:51.5]} 6. h4 {[%clk 0:03:03.9]} 6... Qa5 {[%clk 0:02:48.7]}
7. Bd3 {[%clk 0:02:59.8]} 7... e5 {[%clk 0:02:41.7]} 8. dxe5 {[%clk 0:02:57.8]}
8... dxe5 {[%clk 0:02:42.2]} 9. Bh6 {[%clk 0:02:59.4]} 9... Bxh6 {[%clk
0:02:13]} 10. Qxh6 {[%clk 0:02:59.3]} 10... Nbd7 {[%clk 0:02:12.3]} 11. Nf3
{[%clk 0:02:51.5]} 11... Qb6 {[%clk 0:02:12.4]} 12. Qd2 {[%clk 0:02:41.4]} 12...
Qxb2 {[%clk 0:02:04]} 13. Rb1 {[%clk 0:02:42.3]} 13... Qa3 {[%clk 0:02:05.1]}
14. Bc4 {[%clk 0:02:43.9]} 14... Qe7 {[%clk 0:02:05.2]} 15. Ng5 {[%clk
0:02:40.9]} 15... Rf8 {[%clk 0:01:56.1]} 16. g3 {[%clk 0:02:25.1]} 16... Nb6
{[%clk 0:01:49.5]} 17. Bb3 {[%clk 0:02:25.5]} 17... h6 {[%clk 0:01:47]} 18. Nf3
{[%clk 0:02:13.4]} 18... Bg4 {[%clk 0:01:45.9]} 19. Nh2 {[%clk 0:02:13.7]} 19...
h5 {[%clk 0:01:46.2]} 20. O-O {[%clk 0:02:10]} 20... Rd8 {[%clk 0:01:17.7]} 21.
Qe3 {[%clk 0:02:07.8]} 21... Rd7 {[%clk 0:01:11.5]} 22. a4 {[%clk 0:02:08.5]}
22... Kd8 {[%clk 0:00:54]} 23. a5 {[%clk 0:02:08.7]} 23... Nc8 {[%clk
0:00:55.4]} 24. Ba4 {[%clk 0:01:52.2]} 24... Rd4 {[%clk 0:00:50.5]} 25. f3
{[%clk 0:01:44.2]} 25... Be6 {[%clk 0:00:49.1]} 26. Rfd1 {[%clk 0:01:40.7]}
26... Rxd1+ {[%clk 0:00:45.3]} 27. Rxd1+ {[%clk 0:01:36.4]} 27... Kc7 {[%clk
0:00:46.7]} 28. Rb1 {[%clk 0:01:29.7]} 28... Nd7 {[%clk 0:00:46.7]} 29. a6
{[%clk 0:01:17.2]} 29... Ncb6 {[%clk 0:00:42.3]} 30. axb7 {[%clk 0:01:16.3]}
30... Qc5 {[%clk 0:00:43.4]} 31. Nf1 {[%clk 0:01:11.4]} 31... Kxb7 {[%clk
0:00:43.5]} 32. Bb3 {[%clk 0:01:07.2]} 32... Bxb3 {[%clk 0:00:43.3]} 33. cxb3
{[%clk 0:01:05.9]} 33... Rd8 {[%clk 0:00:44.5]} 34. Rd1 {[%clk 0:01:04.2]} 34...
Kc7 {[%clk 0:00:45.8]} 35. Ra1 {[%clk 0:01:01.4]} 35... Nc8 {[%clk 0:00:40.7]}
36. b4 {[%clk 0:00:59.3]} 36... Qxe3+ {[%clk 0:00:41.4]} 37. Nxe3 {[%clk
0:01:00.4]} 37... Ndb6 {[%clk 0:00:35.1]} 38. Ra3 {[%clk 0:00:55.3]} 38... Kb7
{[%clk 0:00:34.3]} 39. b5 {[%clk 0:00:55.1]} 39... Rd3 {[%clk 0:00:31.7]} 40.
bxc6+ {[%clk 0:00:56.1]} 40... Kxc6 {[%clk 0:00:33.6]} 41. Ned5 {[%clk
0:00:44.8]} 41... Rxf3 {[%clk 0:00:31.2]} 42. Nb4+ {[%clk 0:00:44.6]} 42... Kb7
{[%clk 0:00:30.1]} 43. Kg2 {[%clk 0:00:42.1]} 43... Rf6 {[%clk 0:00:31.3]} 44.
Nd3 {[%clk 0:00:38.4]} 44... Nd7 {[%clk 0:00:30.2]} 45. Nd5 {[%clk 0:00:39.5]}
45... Rc6 {[%clk 0:00:30.8]} 46. Rb3+ {[%clk 0:00:40.6]} 46... Ncb6 {[%clk
0:00:32.2]} 47. Kf3 {[%clk 0:00:39]} 47... f6 {[%clk 0:00:32.8]} 48. Ne7 {[%clk
0:00:39.5]} 48... Rd6 {[%clk 0:00:29.4]} 49. Nxg6 {[%clk 0:00:40.4]} 49... a5
{[%clk 0:00:31.1]} 50. Ne7 {[%clk 0:00:35.1]} 50... a4 {[%clk 0:00:31.4]} 51.
Rc3 {[%clk 0:00:36.3]} 51... Rd4 {[%clk 0:00:24.6]} 52. Nf5 {[%clk 0:00:33.4]}
52... Rc4 {[%clk 0:00:26]} 53. Nd6+ {[%clk 0:00:33.8]} 1-0

[Event "*** MasterClass Titled Tuesday Blitz"]
[Site "Chess.com"]
[Date "2017.09.05"]
[Round "6"]
[White "BIG_Pirate"]
[Black "manubibi"]
[Result "0-1"]
[WhiteElo "2316"]
[BlackElo "2427"]
[TimeControl "180+2"]
[EndTime "14:28:51 PDT"]
[Termination "manubibi won by resignation"]

1. Nf3 {[%clk 0:03:01.9]} 1... Nf6 {[%clk 0:02:59.2]} 2. c4 {[%clk 0:03:02.7]}
2... g6 {[%clk 0:03:00.3]} 3. Nc3 {[%clk 0:03:03.4]} 3... Bg7 {[%clk 0:03:01.8]}
4. g3 {[%clk 0:03:05]} 4... O-O {[%clk 0:03:02.5]} 5. Bg2 {[%clk 0:03:06.4]}
5... d6 {[%clk 0:03:03.8]} 6. O-O {[%clk 0:03:07.4]} 6... Nc6 {[%clk 0:03:02.6]}
7. Rb1 {[%clk 0:03:08.3]} 7... Bf5 {[%clk 0:03:03.2]} 8. d3 {[%clk 0:03:09.2]}
8... a5 {[%clk 0:03:02.7]} 9. a3 {[%clk 0:03:10]} 9... e5 {[%clk 0:03:03.1]} 10.
b4 {[%clk 0:03:09.2]} 10... axb4 {[%clk 0:03:05]} 11. axb4 {[%clk 0:03:10.9]}
11... Qd7 {[%clk 0:03:05.6]} 12. Re1 {[%clk 0:03:04.4]} 12... Bh3 {[%clk
0:03:05.5]} 13. Bh1 {[%clk 0:03:05.6]} 13... h6 {[%clk 0:03:06.7]} 14. Nd5
{[%clk 0:03:01.1]} 14... Nxd5 {[%clk 0:03:02.9]} 15. cxd5 {[%clk 0:03:01.8]}
15... Ne7 {[%clk 0:03:03.6]} 16. Nd2 {[%clk 0:02:57.9]} 16... f5 {[%clk
0:03:03.1]} 17. Qc2 {[%clk 0:02:57.8]} 17... f4 {[%clk 0:03:00.4]} 18. Bb2
{[%clk 0:02:49]} 18... Nf5 {[%clk 0:02:52]} 19. Ne4 {[%clk 0:02:49.4]} 19... Nd4
{[%clk 0:02:48]} 20. Bxd4 {[%clk 0:02:49.7]} 20... exd4 {[%clk 0:02:49.9]} 21.
Rec1 {[%clk 0:02:45.7]} 21... Rf7 {[%clk 0:02:50.5]} 22. b5 {[%clk 0:02:44.2]}
22... fxg3 {[%clk 0:02:16.8]} 23. hxg3 {[%clk 0:02:44.5]} 23... Raf8 {[%clk
0:02:12.4]} 24. b6 {[%clk 0:02:43.2]} 24... cxb6 {[%clk 0:02:13.6]} 25. Rxb6
{[%clk 0:02:43.7]} 25... Be5 {[%clk 0:02:12.9]} 26. Bf3 {[%clk 0:02:42.2]} 26...
Bg4 {[%clk 0:02:07.4]} 27. Rxb7 {[%clk 0:02:16.2]} 27... Qxb7 {[%clk 0:01:53.7]}
28. Bxg4 {[%clk 0:02:17.3]} 28... Qxd5 {[%clk 0:01:55.3]} 29. Qc6 {[%clk
0:02:00.3]} 29... Qxc6 {[%clk 0:01:49.8]} 30. Rxc6 {[%clk 0:02:02.2]} 30... Kg7
{[%clk 0:01:50]} 31. Be6 {[%clk 0:01:57.1]} 31... Re7 {[%clk 0:01:39]} 32. Bd5
{[%clk 0:01:58]} 32... g5 {[%clk 0:01:37.9]} 33. Kg2 {[%clk 0:01:40.4]} 33...
Rf5 {[%clk 0:01:13]} 34. Bb3 {[%clk 0:00:57.5]} 34... Rf8 {[%clk 0:00:41.3]} 35.
Bd5 {[%clk 0:00:56.4]} 35... Rb8 {[%clk 0:00:41.8]} 36. Rc2 {[%clk 0:00:27.7]}
36... Rd8 {[%clk 0:00:40.6]} 37. g4 {[%clk 0:00:26.8]} 37... Rdd7 {[%clk
0:00:39.6]} 38. Nd2 {[%clk 0:00:24.3]} 38... Rc7 {[%clk 0:00:40.1]} 39. Nc4
{[%clk 0:00:25.4]} 39... Rc5 {[%clk 0:00:40]} 40. Bf3 {[%clk 0:00:22.5]} 40...
d5 {[%clk 0:00:40]} 41. Na3 {[%clk 0:00:23.9]} 41... Rc3 {[%clk 0:00:33.4]} 42.
Rxc3 {[%clk 0:00:15.4]} 42... dxc3 {[%clk 0:00:35.3]} 43. Bxd5 {[%clk
0:00:15.8]} 43... Bd6 {[%clk 0:00:36.7]} 44. Nc4 {[%clk 0:00:11]} 44... Bf4
{[%clk 0:00:24.8]} 45. Na3 {[%clk 0:00:03.1]} 45... Rxe2 {[%clk 0:00:24]} 46.
Bb3 {[%clk 0:00:04.2]} 46... Rb2 {[%clk 0:00:24.4]} 47. Bc2 {[%clk 0:00:05.1]}
47... Bd6 {[%clk 0:00:25.3]} 0-1

[Event "*** MasterClass Titled Tuesday Blitz"]
[Site "Chess.com"]
[Date "2017.09.05"]
[Round "6"]
[White "krzyzan94"]
[Black "Vamostodorecto"]
[Result "1-0"]
[WhiteElo "2496"]
[BlackElo "2337"]
[TimeControl "180+2"]
[EndTime "14:29:06 PDT"]
[Termination "krzyzan94 won by resignation"]

1. d4 {[%clk 0:03:01.9]} 1... d5 {[%clk 0:03:00.2]} 2. Nc3 {[%clk 0:03:02.2]}
2... Nf6 {[%clk 0:03:00.5]} 3. Bg5 {[%clk 0:03:03.2]} 3... Nbd7 {[%clk
0:03:00.5]} 4. Qd3 {[%clk 0:03:02.8]} 4... e6 {[%clk 0:02:59.3]} 5. e4 {[%clk
0:03:03.9]} 5... dxe4 {[%clk 0:03:01.2]} 6. Nxe4 {[%clk 0:03:05.4]} 6... Be7
{[%clk 0:03:02.5]} 7. Nxf6+ {[%clk 0:03:01.4]} 7... Nxf6 {[%clk 0:03:04.4]} 8.
O-O-O {[%clk 0:03:01.4]} 8... c5 {[%clk 0:03:02.5]} 9. dxc5 {[%clk 0:02:55.2]}
9... Qxd3 {[%clk 0:03:00.1]} 10. Bxd3 {[%clk 0:02:57.1]} 10... Bxc5 {[%clk
0:02:56.8]} 11. Bxf6 {[%clk 0:02:47.9]} 11... gxf6 {[%clk 0:02:58.7]} 12. Rd2
{[%clk 0:02:41.8]} 12... Bd7 {[%clk 0:02:52.8]} 13. Nf3 {[%clk 0:02:40.8]} 13...
Bc6 {[%clk 0:02:47.6]} 14. Re1 {[%clk 0:02:25.8]} 14... Rg8 {[%clk 0:02:44.2]}
15. Nh4 {[%clk 0:02:25.1]} 15... O-O-O {[%clk 0:02:39.8]} 16. g3 {[%clk
0:02:22.9]} 16... f5 {[%clk 0:02:26.9]} 17. f4 {[%clk 0:02:17.4]} 17... Rd7
{[%clk 0:02:15.3]} 18. a3 {[%clk 0:02:13.9]} 18... Rgd8 {[%clk 0:02:15.3]} 19.
Rde2 {[%clk 0:02:11.7]} 19... Bd4 {[%clk 0:02:07.6]} 20. Rf1 {[%clk 0:02:04.3]}
20... Bf6 {[%clk 0:01:31.7]} 21. Nf3 {[%clk 0:02:04.7]} 21... Bxf3 {[%clk
0:01:30.3]} 22. Rxf3 {[%clk 0:02:06.6]} 22... h5 {[%clk 0:01:22.3]} 23. b4
{[%clk 0:02:01]} 23... Rc7 {[%clk 0:01:14.9]} 24. Kb1 {[%clk 0:01:59.8]} 24...
Rc3 {[%clk 0:01:13.7]} 25. Ka2 {[%clk 0:01:57]} 25... Kc7 {[%clk 0:01:12.4]} 26.
Ref2 {[%clk 0:01:42.5]} 26... a5 {[%clk 0:01:11.4]} 27. bxa5 {[%clk 0:01:35.9]}
27... Rd5 {[%clk 0:00:59.9]} 28. Bf1 {[%clk 0:01:23.2]} 28... Rxf3 {[%clk
0:00:52]} 29. Rxf3 {[%clk 0:01:25.1]} 29... Rd2 {[%clk 0:00:53.6]} 30. h4 {[%clk
0:01:18.4]} 30... Rxc2+ {[%clk 0:00:53.6]} 31. Kb3 {[%clk 0:01:20]} 31... Rb2+
{[%clk 0:00:53.5]} 32. Ka4 {[%clk 0:01:19]} 32... Kc6 {[%clk 0:00:51.3]} 33. Bc4
{[%clk 0:01:03.8]} 33... Kc5 {[%clk 0:00:48.9]} 34. Bb3 {[%clk 0:01:01.3]} 34...
Rg2 {[%clk 0:00:49.3]} 35. Rd3 {[%clk 0:00:56.4]} 35... Bd4 {[%clk 0:00:50.2]}
36. Bd1 {[%clk 0:00:56.3]} 36... Bf2 {[%clk 0:00:48.8]} 37. Bxh5 {[%clk
0:00:55.7]} 37... Bxg3 {[%clk 0:00:46.6]} 38. Bxf7 {[%clk 0:00:55.5]} 38... Rf2
{[%clk 0:00:37]} 39. Rxg3 {[%clk 0:00:53.7]} 39... Rxf4+ {[%clk 0:00:37.5]} 40.
Kb3 {[%clk 0:00:54.7]} 40... Rxh4 {[%clk 0:00:36.6]} 41. Bxe6 {[%clk 0:00:55]}
41... f4 {[%clk 0:00:36.9]} 42. Rg5+ {[%clk 0:00:55.6]} 42... Kd4 {[%clk
0:00:34.6]} 43. Rf5 {[%clk 0:00:44.1]} 43... Ke3 {[%clk 0:00:31.2]} 44. Bd5
{[%clk 0:00:44.1]} 44... Rh7 {[%clk 0:00:21.3]} 45. Kb4 {[%clk 0:00:44.5]} 45...
Rd7 {[%clk 0:00:18.7]} 46. Kb5 {[%clk 0:00:37.6]} 46... Rc7 {[%clk 0:00:15.4]}
47. Kb6 {[%clk 0:00:36.4]} 47... Rc3 {[%clk 0:00:15.7]} 48. Bxb7 {[%clk
0:00:36.7]} 48... Rxa3 {[%clk 0:00:14.7]} 49. a6 {[%clk 0:00:37.8]} 49... Rb3+
{[%clk 0:00:13.9]} 50. Rb5 {[%clk 0:00:38.3]} 50... Ra3 {[%clk 0:00:11.1]} 51.
a7 {[%clk 0:00:38.2]} 51... f3 {[%clk 0:00:11.8]} 52. Bxf3 {[%clk 0:00:37.6]}
52... Rxa7 {[%clk 0:00:11]} 53. Kxa7 {[%clk 0:00:38.5]} 1-0